fUST/lending_fUST_20250227
["ID","MTS","AMOUNT","RATE_DAILY","PERIOD"]
[354631569,1740598258741,-200.0,0.0006,120]
[354631570,1740598258751,-672.0,0.000608,30]
[354631571,1740598258761,-1006.78259754,0.000612,4]
[354631572,1740598258770,-1008.38,0.000613,30]
[354631573,1740598258779,-557.1188801,0.00062356,60]
[354631574,1740598258789,-542.51,0.00062465,120]
[354631575,1740598258800,-542.51,0.00062465,120]
[354631576,1740598258813,-542.51,0.00062465,120]
[354631577,1740598258823,-542.51,0.00062465,120]
[354631578,1740598258833,-542.51,0.00062465,120]
[354631579,1740598258844,-542.51,0.00062465,120]
[354631580,1740598258854,-542.51,0.00062465,120]
[354631581,1740598258864,-542.51,0.00062465,120]
[354631582,1740598258874,-542.51,0.00062465,120]
[354631583,1740598258884,-542.51,0.00062465,120]
[354631584,1740598258900,-542.51,0.00062465,120]
[354631585,1740598258915,-542.51,0.00062465,120]
[354631586,1740598258926,-542.51,0.00062465,120]
[354631587,1740598258936,-542.51,0.00062465,120]
[354631588,1740598258947,-542.51,0.00062465,120]
[354631589,1740598258957,-542.51,0.00062465,120]
[354631590,1740598258968,-542.51,0.00062465,120]
[354631591,1740598258979,-542.51,0.00062465,120]
[354631592,1740598258990,-542.51,0.00062465,120]
[354631593,1740598259001,-542.51,0.00062465,120]
[354631594,1740598259011,-542.51,0.00062465,120]
[354631595,1740598259021,-542.51,0.00062465,120]
[354631596,1740598259032,-542.51,0.00062465,120]
[354631597,1740598259043,-542.65310002,0.00062465,120]
[354631598,1740598259053,-20583.52,0.00063012,120]
[354631599,1740598259063,-323.105,0.00063485,120]
[354631600,1740598259079,-160.406554,0.0006355,120]
[354631601,1740598259089,-963.2214437,0.00065,2]
[354631602,1740598259100,-2000.0,0.00065672,15]
[354631603,1740598259109,-500.0,0.00065753,120]
[354631604,1740598259120,-500.0,0.00065753,120]
[354631605,1740598259130,-247.10550041,0.00065753,120]
[354631606,1740598259140,-10000.0,0.00066,66]
[354631607,1740598259151,-311133.89154614,0.00066031,30]
[354631608,1740598259161,-31641.63433122,0.00066031,30]
[354631609,1740598259171,-311133.89154614,0.00066031,30]
[354631610,1740598259182,-524.97,0.000674,30]
[354631611,1740598259192,-245.4,0.000674,30]
[354631612,1740598259203,-669.892,0.00067912,30]
[354631613,1740598259214,-2200.0,0.00067912,120]
[354631614,1740598259421,-1057.12,0.00068,30]
[354631615,1740598259432,-20583.52,0.00068492,120]
[354631616,1740598259442,-584.8803486,0.00068493,120]
[354631617,1740598259457,-2215.45,0.00068493,10]
[354631618,1740598259467,-1500.0,0.00068771,15]
[354631619,1740598259479,-1500.0,0.00068771,14]
[354631620,1740598259489,-1500.0,0.00068771,14]
[354631621,1740598259499,-2640.02,0.000691,7]
[354631622,1740598259510,-1500.0,0.00069447,7]
[354631623,1740598259520,-200.0,0.0007,120]
[354631624,1740598259530,-31641.63433122,0.00072627,30]
[354631625,1740598259540,-1609.7341846,0.00073499,120]
[354631626,1740598259550,-20583.52,0.00073971,120]
[354631627,1740598259560,-1008.38,0.000741,30]
[354631628,1740598259569,-323.105,0.0007899,120]
[354631629,1740598259579,-20583.52,0.0007945,120]
[354631630,1740598259588,-200.0,0.0008,120]
[354631631,1740598259598,-2500.0,0.00081036,15]
[354631632,1740598259608,-166.99529521,0.00081745,15]
[354631633,1740598259618,-2000.0,0.00081745,14]
[354631634,1740598259628,-2000.0,0.00081745,14]
[354631635,1740598259637,-524.97,0.000818,30]
[354631636,1740598259647,-2000.0,0.00082421,7]
[354631637,1740598259657,-245.4,0.000831,60]
[354631638,1740598259667,-1057.12,0.000831,60]
[354631639,1740598259678,-9984.21434021,0.0008493,120]
[354631640,1740598259687,-39206.32291239,0.0008493,59]
[354631641,1740598259697,-20583.52,0.0008493,120]
[354631642,1740598259707,-1609.7341846,0.00085137,120]
[354631643,1740598259717,-2200.02,0.000868,14]
[354631644,1740598259728,-274.0,0.00087671,120]
[354631645,1740598259738,-274.0,0.00087671,120]
[354631646,1740598259747,-274.0,0.00087671,120]
[354631647,1740598259757,-274.0,0.00087671,120]
[354631648,1740598259768,-274.0,0.00087671,120]
[354631649,1740598259777,-274.0,0.00087671,120]
[354631650,1740598259787,-274.0,0.00087671,120]
[354631651,1740598259800,-274.0,0.00087671,120]
[354631652,1740598259809,-274.0,0.00087671,120]
[354631653,1740598259818,-274.0,0.00087671,120]
[354631654,1740598259828,-274.0,0.00087671,120]
[354631655,1740598259837,-274.0,0.00087671,120]
[354631656,1740598259848,-274.0,0.00087671,120]
[354631657,1740598259858,-340.0,0.00087671,120]
[354631658,1740598259867,-340.0,0.00087671,120]
[354631659,1740598259878,-340.0,0.00087671,120]
[354631660,1740598259889,-340.0,0.00087671,120]
[354631661,1740598259899,-340.0,0.00087671,120]
[354631662,1740598259909,-340.0,0.00087671,120]
[354631663,1740598259919,-340.0,0.00087671,120]
[354631664,1740598259928,-340.0,0.00087671,120]
[354631665,1740598259938,-340.0,0.00087671,120]
[354631666,1740598259948,-340.0,0.00087671,120]
[354631667,1740598259959,-340.0,0.00087671,120]
[354631668,1740598259969,-340.0,0.00087671,120]
[354631669,1740598259981,-340.0,0.00087671,120]
[354631670,1740598259991,-273.0,0.00087671,120]
[354631671,1740598260002,-273.0,0.00087671,120]
[354631672,1740598260012,-273.0,0.00087671,120]
[354631673,1740598260022,-273.0,0.00087671,120]
[354631674,1740598260032,-273.0,0.00087671,120]
[354631675,1740598260043,-273.0,0.00087671,120]
[354631676,1740598260054,-273.0,0.00087671,120]
[354631677,1740598260064,-273.0,0.00087671,120]
[354631678,1740598260086,-273.0,0.00087671,120]
[354631679,1740598260097,-273.0,0.00087671,120]
[354631680,1740598260107,-273.0,0.00087671,120]
[354631681,1740598260117,-273.0,0.00087671,120]
[354631682,1740598260127,-273.0,0.00087671,120]
[354631683,1740598260136,-273.0,0.00087671,120]
[354631684,1740598260146,-340.0,0.00087671,120]
[354631685,1740598260156,-340.0,0.00087671,120]
[354631686,1740598260166,-340.0,0.00087671,120]
[354631687,1740598260175,-340.0,0.00087671,120]
[354631688,1740598260185,-340.0,0.00087671,120]
[354631689,1740598260195,-340.0,0.00087671,120]
[354631690,1740598260205,-340.0,0.00087671,120]
[354631691,1740598260215,-340.0,0.00087671,120]
[354631692,1740598260230,-340.0,0.00087671,120]
[354631693,1740598260240,-340.0,0.00087671,120]
[354631694,1740598260252,-340.0,0.00087671,120]
[354631695,1740598260261,-340.0,0.00087671,120]
[354631696,1740598260270,-340.0,0.00087671,120]
[354631697,1740598260280,-340.0,0.00087671,120]
[354631698,1740598260289,-273.0,0.00087671,120]
[354631699,1740598260299,-273.0,0.00087671,120]
[354631700,1740598260309,-273.0,0.00087671,120]
[354631701,1740598260318,-273.0,0.00087671,120]
[354631702,1740598260328,-273.0,0.00087671,120]
[354631703,1740598260338,-273.0,0.00087671,120]
[354631704,1740598260349,-273.0,0.00087671,120]
[354631705,1740598260359,-273.0,0.00087671,120]
[354631706,1740598260368,-273.0,0.00087671,120]
[354631707,1740598260379,-273.0,0.00087671,120]
[354631708,1740598260388,-273.0,0.00087671,120]
[354631709,1740598260399,-273.0,0.00087671,120]
[354631710,1740598260409,-273.0,0.00087671,120]
[354631711,1740598260418,-273.0,0.00087671,120]
[354631712,1740598260428,-3000.0,0.000889,120]
[354631713,1740598260438,-400046.63572467,0.000889,120]
[354631714,1740598260448,-316.0,0.0009,120]
[354631715,1740598260457,-20583.52,0.00090409,120]
[354631716,1740598260469,-1008.38,0.000921,60]
[354631717,1740598260481,-800.0,0.00094483,120]
[354631718,1740598260492,-323.106,0.00094495,120]
[354631719,1740598260504,-5000.0,0.00094999,120]
[354631720,1740598260514,-536.245,0.00095,120]
[354631721,1740598260524,-20583.52,0.00095889,120]
[354631722,1740598260534,-2000.0,0.000962,120]
[354631723,1740598260545,-500.0,0.00096208,120]
[354631724,1740598260559,-500.0,0.00096208,120]
[354631725,1740598260570,-5000.0,0.000969,120]
[354631726,1740598260581,-524.97,0.00097,60]
[354631727,1740598260592,-10000.0,0.00097,97]
[354631728,1740598260603,-20000.0,0.00097,120]
[354631729,1740598260614,-20000.0,0.00097,120]
[354631730,1740598260625,-20000.0,0.00097,120]
[354631731,1740598260635,-20000.0,0.00097,120]
[354631732,1740598260645,-20000.0,0.00097,120]
[354631733,1740598260656,-20000.0,0.00097,120]
[354631734,1740598260667,-20000.0,0.00097,120]
[354631735,1740598260678,-20000.0,0.00097,120]
[354631736,1740598260689,-20000.0,0.00097,120]
[354631737,1740598260699,-20000.0,0.00097,120]
[354631738,1740598260710,-9771.5852889,0.00097,120]
[354631739,1740598260723,-2500.0,0.00097108,14]
[354631740,1740598260733,-2500.0,0.00097108,14]
[354631741,1740598260744,-1869.0,0.000972,120]
[354631742,1740598260754,-1057.12,0.000972,60]
[354631743,1740598260764,-2000.0,0.00097389,120]
[354631744,1740598260776,-151.0,0.00097399,120]
[354631745,1740598260787,-1000.0,0.00097399,120]
[354631746,1740598260798,-245.4,0.000974,60]
[354631747,1740598260811,-113263.03798639,0.000974,120]
[354631748,1740598260821,-7058.77964896,0.000975,30]
[354631749,1740598260831,-2500.0,0.00097784,7]
[354631750,1740598260843,-92722.51858101,0.000978,120]
[354631751,1740598260855,-22655.209999,0.00097845,120]
[354631752,1740598260865,-100000.0,0.00098,120]
[354631753,1740598260875,-5000.0,0.00098,120]
[354631754,1740598260886,-3000.0,0.00098462,60]
[354631755,1740598260906,-1609.7341846,0.00098617,120]
[354631756,1740598260916,-22647.96969204,0.00098703,30]
[354631757,1740598260927,-322.82338501,0.0009876,120]
[354631758,1740598260938,-225692.97832362,0.00099,30]
[354631759,1740598260948,-14062.94859165,0.00099,30]
[354631760,1740598260960,-1000.0,0.00099,120]
[354631761,1740598260972,-100000.0,0.00099,120]
[354631762,1740598260983,-5000.0,0.00099,120]
[354631763,1740598260994,-429.66,0.00099315,120]
[354631764,1740598261004,-444.09,0.00099452,120]
[354631765,1740598261014,-72517.68352533,0.00099498,120]
[354631766,1740598261024,-1008.38,0.000995,60]
[354631767,1740598261035,-1133.52165278,0.001,120]
[354631768,1740598261045,-500.0,0.001,120]
[354631769,1740598261055,-2000.0,0.001,120]
[354631770,1740598261068,-200.0,0.001,120]
[354631771,1740598261093,-6000.0,0.001,120]
[354631772,1740598261104,-1000.0,0.001,120]
[354631773,1740598261114,-1000.0,0.001,120]
[354631774,1740598261124,-1000.0,0.001,120]
[354631775,1740598261135,-1000.0,0.001,120]
[354631776,1740598261145,-5403.0,0.001,30]
[354631777,1740598261155,-20000.0,0.001,120]
[354631778,1740598261165,-7093.689895,0.001,120]
[354631779,1740598261175,-139711.22571684,0.001,30]
[354631780,1740598261186,-151.0,0.001,120]
[354631781,1740598261196,-151.0,0.001,120]
[354631782,1740598261206,-20583.52,0.00101368,120]
[354631783,1740598261217,-150.0,0.00101543,14]
[354631784,1740598261231,-150.0,0.00101543,14]
[354631785,1740598261241,-444.09,0.00102739,120]
[354631786,1740598261251,-3209.45110527,0.00105077,5]
[354631787,1740598261261,-160.0,0.0010522,120]
[354631788,1740598261271,-444.09,0.00106027,120]
[354631789,1740598261281,-20583.52,0.00106848,120]
[354631790,1740598261290,-160.406554,0.001089,2]
[354631791,1740598261300,-225692.97832362,0.00109,30]
[354631792,1740598261310,-14062.94859165,0.00109,30]
[354631793,1740598261321,-524.97,0.00109,60]
[354631794,1740598261331,-444.09,0.00109315,120]
[354631795,1740598261342,-500.0,0.00109589,120]
[354631796,1740598261351,-1057.12,0.0011,60]
[354631797,1740598261361,-323.105,0.0011,120]
[354631798,1740598261371,-500.0,0.00111031,120]
[354631799,1740598261381,-245.4,0.00112,60]
[354631800,1740598261391,-20583.52,0.00112327,120]
[354631801,1740598261402,-500.0,0.00112473,120]
[354631802,1740598261412,-444.09,0.00112602,120]
[354631803,1740598261423,-500.0,0.00113915,120]
[354631804,1740598261433,-3000.0,0.00114535,14]
[354631805,1740598261443,-3000.0,0.00114535,14]
[354631806,1740598261454,-150.0,0.0011465,14]
[354631807,1740598261464,-150.0,0.0011465,14]
[354631808,1740598261477,-3000.0,0.00115211,7]
[354631809,1740598261488,-500.0,0.00115357,120]
[354631810,1740598261498,-444.09,0.0011589,120]
[354631811,1740598261508,-500.0,0.00116799,120]
[354631812,1740598261518,-1850.200208,0.00117731,60]
[354631813,1740598261530,-20583.52,0.00117807,120]
[354631814,1740598261541,-500.0,0.00118241,120]
[354631815,1740598261552,-444.09,0.00119178,120]
[354631816,1740598261562,-500.0,0.00119683,120]
[354631817,1740598261573,-1000.0,0.0012,120]
[354631818,1740598261583,-1000.0,0.0012,120]
[354631819,1740598261594,-1000.0,0.0012,120]
[354631820,1740598261605,-883.23655593,0.0012,120]
[354631821,1740598261615,-500.0,0.00121125,120]
[354631822,1740598261625,-444.09,0.00122465,120]
[354631823,1740598261635,-500.0,0.00122567,120]
[354631824,1740598261645,-20583.52,0.00123286,120]
[354631825,1740598261655,-500.0,0.00123605,120]
[354631826,1740598261667,-480.0,0.00123605,120]
[354631827,1740598261676,-1008.38,0.00124,60]
[354631828,1740598261687,-500.0,0.00124009,120]
[354631829,1740598261697,-500.0,0.00125451,120]
[354631830,1740598261707,-444.09,0.00125753,120]
[354631831,1740598261717,-500.0,0.00126893,120]
[354631832,1740598261732,-160.0,0.00127969,120]
[354631833,1740598261741,-500.0,0.00128335,120]
[354631834,1740598261751,-20583.52,0.00128766,120]
[354631835,1740598261761,-6300.0,0.0012878,120]
[354631836,1740598261771,-444.09,0.00129041,120]
[354631837,1740598261780,-6300.0,0.00129054,120]
[354631838,1740598261791,-6300.0,0.00129328,120]
[354631839,1740598261803,-6300.0,0.00129602,120]
[354631840,1740598261815,-500.0,0.00129777,120]
[354631841,1740598261825,-20000.0,0.0013,120]
[354631842,1740598261835,-6300.0,0.0013015,120]
[354631843,1740598261846,-6300.0,0.00130698,120]
[354631844,1740598261856,-1760.01,0.001309,30]
[354631845,1740598261866,-500.0,0.00131219,120]
[354631846,1740598261877,-6300.0,0.00131246,120]
[354631847,1740598261887,-6300.0,0.00131794,120]
[354631848,1740598261896,-444.09,0.00132328,120]
[354631849,1740598261907,-6300.0,0.00132342,120]
[354631850,1740598261991,-500.0,0.00132661,120]
[354631851,1740598262001,-6300.0,0.0013289,120]
[354631852,1740598262011,-524.97,0.00133,60]
[354631853,1740598262020,-6300.0,0.00133438,120]
[354631854,1740598262030,-3500.0,0.00133804,14]
[354631855,1740598262039,-3500.0,0.00133804,14]
[354631856,1740598262049,-6300.0,0.00133986,120]
[354631857,1740598262059,-1057.12,0.00134,60]
[354631858,1740598262068,-500.0,0.00134103,120]
[354631859,1740598262078,-20583.52,0.00134245,120]
[354631860,1740598262087,-3500.0,0.0013448,7]
[354631861,1740598262096,-3072.93941767,0.00134534,120]
[354631862,1740598262107,-245.4,0.00135,60]
[354631863,1740598262115,-500.0,0.00135545,120]
[354631864,1740598262125,-208.38,0.00136986,120]
[354631865,1740598262134,-208.38,0.00136986,120]
[354631866,1740598262144,-208.38,0.00136986,120]
[354631867,1740598262154,-208.38,0.00136986,120]
[354631868,1740598262163,-208.38,0.00136986,120]
[354631869,1740598262172,-208.38,0.00136986,120]
[354631870,1740598262182,-208.38,0.00136986,120]
[354631871,1740598262191,-208.38,0.00136986,120]
[354631872,1740598262201,-208.38,0.00136986,120]
[354631873,1740598262210,-208.38,0.00136986,120]
[354631874,1740598262221,-208.38,0.00136986,120]
[354631875,1740598262232,-208.38,0.00136986,120]
[354631876,1740598262242,-208.38,0.00136986,120]
[354631877,1740598262251,-208.38,0.00136986,120]
[354631878,1740598262260,-208.38,0.00136986,120]
[354631879,1740598262269,-208.38,0.00136986,120]
[354631880,1740598262278,-208.38,0.00136986,120]
[354631881,1740598262287,-208.38,0.00136986,120]
[354631882,1740598262297,-208.38,0.00136986,120]
[354631883,1740598262306,-208.38,0.00136986,120]
[354631884,1740598262315,-208.38,0.00136986,120]
[354631885,1740598262325,-208.38,0.00136986,120]
[354631886,1740598262334,-208.38,0.00136986,120]
[354631887,1740598262344,-208.51832211,0.00136986,120]
[354631888,1740598262354,-328.110813,0.00136986,120]
[354631889,1740598262363,-183.081624,0.00136986,120]
[354631890,1740598262372,-500.0,0.00136987,120]
[354631891,1740598262382,-20583.52,0.00139724,120]
[354631892,1740598262391,-328.110813,0.00144196,120]
[354631893,1740598262401,-20583.52,0.00145204,120]
[354631894,1740598262411,-119493.80248689,0.0015,120]
[354631895,1740598262422,-500.0,0.0015,120]
[354631896,1740598262431,-1000.0,0.0015,120]
[354631897,1740598262440,-1000.0,0.0015,120]
[354631898,1740598262450,-1000.0,0.0015,120]
[354631899,1740598262459,-179.56903432,0.00150093,60]
[354631900,1740598262469,-20583.52,0.00150683,120]
[354631901,1740598262483,-328.110813,0.00151406,120]
[354631902,1740598262493,-4000.0,0.00154753,14]
[354631903,1740598262502,-4000.0,0.00154753,14]
[354631904,1740598262513,-440.0,0.00154935,120]
[354631905,1740598262523,-776.46200533,0.0015543,7]
[354631906,1740598262533,-20583.52,0.00156163,120]
[354631907,1740598262542,-328.110813,0.00158616,120]
[354631908,1740598262551,-20583.52,0.00161642,120]
[354631909,1740598262561,-328.110813,0.00165826,120]
[354631910,1740598262570,-1320.01,0.001662,120]
[354631911,1740598262580,-1421.9388,0.0016677,104]
[354631912,1740598262589,-20583.52,0.00167122,120]
[354631913,1740598262599,-160.0,0.00169481,120]
[354631914,1740598262608,-20000.0,0.0017,120]
[354631915,1740598262618,-524.97,0.0017,60]
[354631916,1740598262627,-20583.52,0.00172601,120]
[354631917,1740598262636,-328.110813,0.00173035,120]
[354631918,1740598262645,-4500.0,0.00177258,14]
[354631919,1740598262655,-4500.0,0.00177258,14]
[354631920,1740598262665,-20583.55581957,0.00178081,120]
[354631921,1740598262674,-328.110813,0.00180245,120]
[354631922,1740598262683,-183.081624,0.00182648,120]
[354631923,1740598262693,-328.110813,0.00187455,120]
[354631924,1740598262702,-380.0,0.00187944,120]
[354631925,1740598262712,-234.5523247,0.0019063,120]
[354631926,1740598262725,-234.5523247,0.00191562,120]
[354631927,1740598262736,-234.5523247,0.00192466,120]
[354631928,1740598262745,-234.5523247,0.00193397,120]
[354631929,1740598262755,-234.5523247,0.00194301,120]
[354631930,1740598262765,-328.110813,0.00194665,120]
[354631931,1740598262775,-234.5523247,0.00195233,120]
[354631932,1740598262784,-156.03043341,0.00195699,120]
[354631933,1740598262794,-234.5523247,0.00196164,120]
[354631934,1740598262808,-234.5523247,0.00197068,120]
[354631935,1740598262818,-48611.8964153,0.00197256,60]
[354631936,1740598262827,-234.5523247,0.00198,120]
[354631937,1740598262837,-234.5523247,0.00198932,120]
[354631938,1740598262847,-234.5523247,0.00199836,120]
[354631939,1740598262856,-1000.0,0.002,120]
[354631940,1740598262867,-685.82544323,0.002,120]
[354631941,1740598262876,-425.793434,0.002,60]
[354631942,1740598262886,-500.0,0.002,120]
[354631943,1740598262897,-2000.0,0.002,120]
[354631944,1740598262906,-500.0,0.002,120]
[354631945,1740598262915,-500.0,0.002,120]
[354631946,1740598262924,-200.0,0.002,120]
[354631947,1740598262933,-13163.72821774,0.002,120]
[354631948,1740598262942,-5000.0,0.002,120]
[354631949,1740598262951,-1000.0,0.002,120]
[354631950,1740598262960,-341.28684413,0.002,120]
[354631951,1740598262969,-234.5523247,0.00200767,120]
[354631952,1740598262981,-5000.0,0.00201218,14]
[354631953,1740598262991,-5000.0,0.00201218,14]
[354631954,1740598263000,-160.0,0.00201378,120]
[354631955,1740598263009,-328.110813,0.00201875,120]
[354631956,1740598263018,-328.110813,0.00209084,120]
[354631957,1740598263027,-328.110813,0.00216294,120]
[354631958,1740598263037,-20000.0,0.0022,120]
[354631959,1740598263047,-362.20827847,0.00222093,120]
[354631960,1740598263057,-328.110813,0.00223504,120]
[354631961,1740598263067,-179.56903432,0.00225139,60]
[354631962,1740598263077,-5500.0,0.00226548,14]
[354631963,1740598263087,-5500.0,0.00226548,14]
[354631964,1740598263096,-183.081624,0.00228311,120]
[354631965,1740598263107,-328.110813,0.00230714,120]
[354631966,1740598263117,-1743.0,0.00236282,85]
[354631967,1740598263128,-328.110813,0.00237924,120]
[354631968,1740598263138,-1057.12,0.0024,60]
[354631969,1740598263147,-328.110813,0.00245133,120]
[354631970,1740598263156,-245.4,0.0025,60]
[354631971,1740598263166,-1008.38,0.0025,60]
[354631972,1740598263177,-328.110813,0.00252343,120]
[354631973,1740598263186,-6000.0,0.00253179,14]
[354631974,1740598263196,-6000.0,0.00253179,14]
[354631975,1740598263207,-160.0,0.0025828,120]
[354631976,1740598263219,-328.110813,0.00259553,120]
[354631977,1740598263231,-328.110813,0.00266763,120]
[354631978,1740598263242,-160.0,0.00267597,3]
[354631979,1740598263252,-5000.0,0.0027,120]
[354631980,1740598263261,-20000.0,0.00273,120]
[354631981,1740598263271,-151.0,0.00273973,120]
[354631982,1740598263280,-151.0,0.00273973,120]
[354631983,1740598263290,-151.0,0.00273973,120]
[354631984,1740598263299,-151.0,0.00273973,120]
[354631985,1740598263309,-197.180806,0.00273973,120]
[354631986,1740598263319,-151.0,0.00273973,120]
[354631987,1740598263328,-151.0,0.00273973,120]
[354631988,1740598263338,-151.0,0.00273973,120]
[354631989,1740598263347,-151.465341,0.00273973,120]
[354631990,1740598263356,-151.0,0.00273973,120]
[354631991,1740598263366,-151.0,0.00273973,120]
[354631992,1740598263375,-151.0,0.00273973,120]
[354631993,1740598263384,-151.0,0.00273973,120]
[354631994,1740598263394,-158.08456,0.00273973,120]
[354631995,1740598263403,-151.0,0.00273973,120]
[354631996,1740598263413,-151.0,0.00273973,120]
[354631997,1740598263422,-151.0,0.00273973,120]
[354631998,1740598263431,-151.0,0.00273973,120]
[354631999,1740598263441,-151.0,0.00273973,120]
[354632000,1740598263450,-151.0,0.00273973,120]
[354632001,1740598263459,-151.0,0.00273973,120]
[354632002,1740598263469,-562.433484,0.00273973,120]
[354632003,1740598263481,-562.433484,0.00273973,120]
[354632004,1740598263491,-562.433484,0.00273973,120]
[354632005,1740598263501,-562.433484,0.00273973,120]
[354632006,1740598263511,-562.433484,0.00273973,120]
[354632007,1740598263520,-562.433484,0.00273973,120]
[354632008,1740598263530,-562.433484,0.00273973,120]
[354632009,1740598263539,-562.433484,0.00273973,120]
[354632010,1740598263549,-562.433484,0.00273973,120]
[354632011,1740598263559,-562.433484,0.00273973,120]
[354632012,1740598263568,-562.433484,0.00273973,120]
[354632013,1740598263577,-151.0,0.00273973,120]
[354632014,1740598263587,-151.0,0.00273973,120]
[354632015,1740598263596,-282.008568,0.00273973,110]
[354632016,1740598263606,-151.0,0.00273973,3]
[354632017,1740598263615,-151.0,0.00273973,3]
[354632018,1740598263625,-151.0,0.00273973,120]
[354632019,1740598263634,-151.0,0.00273973,120]
[354632020,1740598263644,-151.0,0.00273973,120]
[354632021,1740598263654,-221.345486,0.00273973,120]
[354632022,1740598263663,-757.260065,0.00273973,120]
[354632023,1740598263673,-757.260065,0.00273973,120]
[354632024,1740598263683,-757.260065,0.00273973,120]
[354632025,1740598263692,-757.260065,0.00273973,120]
[354632026,1740598263702,-757.260065,0.00273973,120]
[354632027,1740598263711,-757.260065,0.00273973,120]
[354632028,1740598263723,-757.260065,0.00273973,120]
[354632029,1740598263732,-757.260065,0.00273973,120]
[354632030,1740598263743,-151.0,0.00273973,120]
[354632031,1740598263752,-757.260065,0.00273973,120]
[354632032,1740598263761,-757.260065,0.00273973,120]
[354632033,1740598263771,-757.260065,0.00273973,120]
[354632034,1740598263780,-151.0,0.00273973,30]
[354632035,1740598263789,-151.0,0.00273973,30]
[354632036,1740598263800,-151.0,0.00273973,30]
[354632037,1740598263810,-151.0,0.00273973,30]
[354632038,1740598263821,-151.0,0.00273973,30]
[354632039,1740598263830,-151.0,0.00273973,30]
[354632040,1740598263840,-151.0,0.00273973,30]
[354632041,1740598263851,-151.0,0.00273973,30]
[354632042,1740598263860,-151.0,0.00273973,30]
[354632043,1740598263870,-151.0,0.00273973,30]
[354632044,1740598263879,-269.660368,0.00273973,30]
[354632045,1740598263889,-151.0,0.00273973,120]
[354632046,1740598263900,-151.0,0.00273973,120]
[354632047,1740598263909,-151.0,0.00273973,120]
[354632048,1740598263918,-151.258555,0.00273973,120]
[354632049,1740598263927,-151.0,0.00273973,120]
[354632050,1740598263937,-151.0,0.00273973,120]
[354632051,1740598263946,-151.0,0.00273973,120]
[354632052,1740598263955,-151.0,0.00273973,120]
[354632053,1740598263964,-151.0,0.00273973,120]
[354632054,1740598263974,-151.0,0.00273973,120]
[354632055,1740598263984,-151.0,0.00273973,120]
[354632056,1740598263993,-151.0,0.00273973,120]
[354632057,1740598264003,-151.0,0.00273973,120]
[354632058,1740598264013,-151.0,0.00273973,120]
[354632059,1740598264023,-151.0,0.00273973,120]
[354632060,1740598264033,-151.0,0.00273973,120]
[354632061,1740598264042,-151.0,0.00273973,120]
[354632062,1740598264051,-151.0,0.00273973,120]
[354632063,1740598264061,-151.0,0.00273973,120]
[354632064,1740598264071,-151.0,0.00273973,120]
[354632065,1740598264080,-151.0,0.00273973,120]
[354632066,1740598264090,-151.0,0.00273973,120]
[354632067,1740598264099,-151.0,0.00273973,120]
[354632068,1740598264108,-151.0,0.00273973,120]